fUST/lending_fUST_20250809
["ID","MTS","AMOUNT","RATE_DAILY","PERIOD"]
[378097486,1754727058410,-460.0,0.00023835,2]
[378097487,1754727058424,-978.71,0.00023835,2]
[378097488,1754727058439,-1722.83,0.00023835,2]
[378097489,1754727058454,-592.8,0.00023835,2]
[378097490,1754727058465,-460.0,0.00023835,2]
[378097491,1754727058478,-1453.27,0.00023835,2]
[378097492,1754727058491,-460.0,0.00023835,2]
[378097493,1754727058506,-460.0,0.00023835,2]
[378097494,1754727058520,-460.0,0.00023835,2]
[378097495,1754727058535,-460.0,0.00023835,2]
[378097496,1754727058550,-962.12,0.00023835,2]
[378097497,1754727058565,-1069.49,0.00023835,2]
[378097498,1754727058576,-460.0,0.00023835,2]
[378097499,1754727058587,-460.0,0.00023835,2]
[378097500,1754727058600,-547.54,0.00023835,2]
[378097501,1754727058614,-151.0,0.00023835,7]
[378097502,1754727058628,-1290.96,0.00023835,2]
[378097503,1754727058644,-586.62,0.00023835,2]
[378097504,1754727058656,-151.0,0.00023835,7]
[378097505,1754727058670,-684.24,0.00023835,2]
[378097506,1754727058684,-1500.0,0.00023868,2]
[378097507,1754727058694,-1500.0,0.00023868,2]
[378097508,1754727058706,-1001.21377576,0.00023868,2]
[378097509,1754727058718,-1000.0,0.00023868,2]
[378097510,1754727058730,-1500.0,0.00023868,2]
[378097511,1754727058742,-1500.0,0.00023868,2]
[378097512,1754727058754,-420.0,0.00023885,2]
[378097513,1754727058766,-1500.0,0.00023886,2]
[378097514,1754727058778,-3000.0,0.00023886,2]
[378097515,1754727058799,-177.921058,0.00023886,7]
[378097516,1754727058814,-177.921058,0.00023886,7]
[378097517,1754727058829,-151.0,0.00023886,7]
[378097518,1754727058841,-151.0,0.00023886,7]
[378097519,1754727058852,-2057.221825,0.00023886,7]
[378097520,1754727058866,-2057.221825,0.00023886,7]
[378097521,1754727058878,-498.839639,0.00023886,7]
[378097522,1754727058891,-498.839639,0.00023886,7]
[378097523,1754727058903,-651.210314,0.00023886,7]
[378097524,1754727058916,-651.210314,0.00023886,7]
[378097525,1754727058928,-1003.75264012,0.0002389,2]
[378097526,1754727058940,-31774.06618555,0.000239,5]
[378097527,1754727059173,-533.26,0.00021917,2]
[378097528,1754727059183,-250.0,0.00022028,2]
[378097529,1754727059192,-250.0,0.00022028,2]
[378097530,1754727059202,-250.0,0.00022028,2]
[378097531,1754727059212,-533.26,0.00022191,2]
[378097532,1754727059221,-533.26,0.00022465,2]
[378097533,1754727059231,-500.0,0.00022811,2]
[378097534,1754727059241,-198.08667497,0.00023085,2]
[378097535,1754727059397,-1042.09551609,0.00021917,2]
[378097536,1754727061081,47314.00000001,0.00031728,30]
[378097537,1754727061335,10703.07964718,0.00021616,2]
[378097538,1754727061358,32300.0,0.00021616,2]
[378097539,1754727061381,32300.0,0.00021616,2]
[378097540,1754727061404,32300.0,0.00021616,2]
[378097541,1754727061428,21235.77853016,0.00021616,2]
[378097542,1754727063205,300.0,0.00021615,2]
[378097545,1754727099045,4759.1779531,0.000199,2]
[378097546,1754727099134,4759.17795309,0.00021655,2]
[378097548,1754727119121,361.294948,0.00021243,2]
[378097549,1754727134079,10000.0,0.00030137,120]
[378097550,1754727157659,260.0,0.000216,2]
[378097551,1754727191431,624.57061565,0.00020904,2]
[378097552,1754727191454,32300.0,0.00020904,2]
[378097553,1754727191476,32300.0,0.00020904,2]
[378097554,1754727191499,3347.64540645,0.00020904,2]
[378097555,1754727199015,5000.0,0.00021655,2]
[378097556,1754727213994,23952.35459355,0.00021616,2]
[378097557,1754727214021,32300.0,0.00021616,2]
[378097558,1754727214048,32300.0,0.00021616,2]
[378097559,1754727214074,32300.0,0.00021616,2]
[378097560,1754727214099,32300.0,0.00021616,2]
[378097561,1754727214124,11595.53325668,0.00021616,2]
[378097562,1754727215293,5000.0,0.00021655,2]
[378097563,1754727231273,5000.0,0.00021655,2]
[378097564,1754727246424,5000.0,0.00021655,2]
[378097565,1754727255640,278.312981,0.00020873,2]
[378097566,1754727263199,471.98727665,0.00021655,2]
[378097567,1754727269792,974.59781633,0.00021461,2]
[378097568,1754727273092,3979.56866934,0.000199,2]
[378097569,1754727273122,1530.98632533,0.000199,2]
[378097570,1754727273180,5510.55499454,0.00021655,2]
[378097571,1754727339447,3882.2937367,0.00020893,2]
[378097572,1754727374540,3814.4939868,0.00020879,2]
[378097573,1754727420484,296.18633636,0.00021146,2]
[378097574,1754727447406,5143.18466159,0.000199,2]
[378097575,1754727447520,5143.18466157,0.00021655,2]
[378097576,1754727461892,6979.11529711,0.00020794,2]
[378097577,1754727461918,3020.88470289,0.00020794,2]
[378097578,1754727539477,1233.0,0.000216,2]
[378097579,1754727571190,935.57643017,0.00021461,2]
[378097580,1754727627034,4800.29906097,0.000199,2]
[378097581,1754727627123,4800.2990607,0.00021655,2]
[378097582,1754727650587,169.41717851,0.000216,2]
[378097583,1754727651126,169.41717851,0.00021649,2]
[378097584,1754727684889,666.0,0.00020795,2]
[378097585,1754727758068,169.41717851,0.000216,2]
[378097586,1754727802787,4480.93484226,0.000199,2]
[378097587,1754727802907,4480.93484219,0.00021655,2]
[378097588,1754727872453,814.2806552,0.00021461,2]
[378097589,1754727894185,6559.53887009,0.0002079,2]
[378097590,1754727894210,18340.46112991,0.0002079,2]
[378097597,1754727977756,4314.94907969,0.000199,2]
[378097598,1754727977849,4314.9490795,0.00021655,2]
[378097599,1754727979324,614.701751,0.00013699,2]
[378097600,1754727979523,614.701751,0.00020187,2]
[378097609,1754727993971,158.0,0.000216,2]
[378097610,1754728003522,500.0,0.0002,2]
[378097611,1754728005673,158.0,0.000216,2]
[378097612,1754728016898,3284.2372089,0.000216,2]
[378097613,1754728016921,7820.83135591,0.000216,2]
[378097615,1754728033751,179.65122183,0.000216,2]
[378097617,1754728035760,1525.41708205,0.00031685,30]
[378097618,1754728036281,613.6968,0.00020789,2]
[378097624,1754728071117,250.89923789,0.000209,2]
[378097625,1754728071210,23434.92138437,0.00018,2]
[378097626,1754728071232,15757.30362888,0.00018,2]
[378097642,1754728126914,16542.69637112,0.0002,2]
[378097643,1754728126936,14534.79504693,0.0002,2]
[378097647,1754728132347,420.0738267,0.00020789,2]
[378097648,1754728139670,167.1064005,0.00020789,2]
[378097649,1754728145598,4498.04140909,0.000199,2]
[378097650,1754728145683,4498.04140891,0.00021655,2]
[378097654,1754728173396,542.85377013,0.00019555,2]
[378097669,1754728232806,-1090.55055907,0.00021695,2]
[378097671,1754728232815,-179.65122183,0.00021696,2]
[378097673,1754728232823,-1.7982191,0.000217,5]
[378097675,1754728232841,-221.22899818,0.000217,5]
[378097677,1754728232862,-300.0,0.00021788,2]
[378097678,1754728232871,-300.0,0.00021788,2]
[378097679,1754728232880,-300.0,0.00021788,2]
[378097680,1754728232889,-62.68060182,0.00021788,2]
[378097681,1754728232904,-237.31939818,0.00021788,2]
[378097682,1754728232914,-1200.0,0.00021788,2]
[378097683,1754728232922,-1200.0,0.00021789,2]
[378097686,1754728232931,-4304.18,0.00021789,10]
[378097687,1754728232940,-5226.87,0.00021789,10]
[378097689,1754728232949,-154.18,0.0002179,3]
[378097690,1754728232960,-462.57,0.0002179,3]
[378097692,1754728232969,-160.0,0.0002179,10]
[378097693,1754728232979,-6272.25,0.0002179,10]
[378097695,1754728232988,-23452.98322132,0.0002179,2]
[378097697,1754728232999,-1514.26,0.0002179,2]
[378097737,1754728238661,-14065.04511629,0.0002179,2]
[378097738,1754728238670,-522.31958598,0.00021795,2]
[378097739,1754728238680,-500.0,0.00021795,2]
[378097740,1754728238689,-500.0,0.00021795,2]
[378097741,1754728238699,-500.0,0.00021795,2]
[378097742,1754728238708,-500.0,0.00021795,2]
[378097743,1754728238718,-500.0,0.00021795,2]
[378097744,1754728238728,-500.0,0.00021795,2]
[378097745,1754728238737,-500.0,0.00021795,2]
[378097746,1754728238747,-500.0,0.00021795,2]
[378097747,1754728238756,-500.0,0.00021795,2]
[378097748,1754728238767,-227.82893298,0.00021795,2]
[378097749,1754728238776,-500.0,0.00021795,2]
[378097751,1754728238786,-500.0,0.00021795,2]
[378097752,1754728238795,-500.0,0.00021795,2]
[378097753,1754728238804,-500.0,0.00021795,2]
[378097754,1754728238813,-500.0,0.00021795,2]
[378097755,1754728238823,-500.0,0.00021795,2]
[378097756,1754728238832,-500.0,0.00021795,2]
[378097757,1754728238841,-465.46919613,0.00021795,2]
[378097758,1754728238851,-293.27521734,0.00021795,2]
[378097759,1754728238860,-500.0,0.00021795,2]
[378097760,1754728238870,-500.0,0.00021795,2]
[378097761,1754728238880,-500.0,0.00021795,2]
[378097762,1754728238889,-500.0,0.00021795,2]
[378097763,1754728238898,-500.0,0.00021795,2]
[378097764,1754728238907,-500.0,0.00021795,2]
[378097765,1754728238918,-500.0,0.00021795,2]
[378097766,1754728238928,-500.0,0.00021795,2]
[378097767,1754728238938,-636.09390927,0.00021795,2]
[378097768,1754728238947,-500.0,0.00021795,2]
[378097769,1754728238957,-500.0,0.00021795,2]
[378097770,1754728238967,-500.0,0.00021795,2]
[378097771,1754728238976,-500.0,0.00021795,2]
[378097772,1754728238985,-500.0,0.00021795,2]
[378097773,1754728238995,-500.0,0.00021795,2]
[378097774,1754728239006,-500.0,0.00021795,2]
[378097775,1754728239016,-500.0,0.00021795,2]
[378097776,1754728239026,-500.0,0.00021795,2]
[378097777,1754728239036,-500.0,0.00021795,2]
[378097778,1754728239046,-500.0,0.00021795,2]
[378097779,1754728239057,-500.0,0.00021795,2]
[378097780,1754728239067,-500.0,0.00021795,2]
[378097781,1754728239076,-500.0,0.00021795,2]
[378097782,1754728239086,-500.0,0.00021795,2]
[378097783,1754728239096,-500.0,0.00021795,2]
[378097784,1754728239105,-500.0,0.00021795,2]
[378097785,1754728239116,-500.0,0.00021795,2]
[378097786,1754728239127,-500.0,0.00021795,2]
[378097787,1754728239137,-500.0,0.00021795,2]
[378097788,1754728239146,-500.0,0.00021795,2]
[378097789,1754728239156,-500.0,0.00021795,2]
[378097790,1754728239166,-500.0,0.00021795,2]
[378097791,1754728239176,-500.0,0.00021795,2]
[378097792,1754728239185,-500.0,0.00021795,2]
[378097793,1754728239198,-452.33360856,0.00021795,2]
[378097794,1754728239208,-500.0,0.00021795,2]
[378097795,1754728239218,-500.0,0.00021795,2]
[378097796,1754728239227,-500.0,0.00021795,2]
[378097797,1754728239237,-500.0,0.00021795,2]
[378097798,1754728239246,-500.0,0.00021795,2]
[378097799,1754728239255,-500.0,0.00021795,2]
[378097800,1754728239264,-600.0,0.00021795,2]
[378097801,1754728239274,-500.0,0.00021795,2]
[378097802,1754728239428,-500.0,0.00021795,2]
[378097803,1754728239445,-500.0,0.00021795,2]
[378097804,1754728239454,-500.0,0.00021795,2]
[378097805,1754728239463,-500.0,0.00021795,2]
[378097806,1754728239472,-500.0,0.00021799,2]
[378097807,1754728239482,-169.19433477,0.00021799,2]
[378097808,1754728239491,-540.52861349,0.00021799,2]
[378097809,1754728239500,-540.52861349,0.00021799,2]
[378097810,1754728239509,-540.52861349,0.00021799,2]
[378097811,1754728239519,-540.52861349,0.00021799,2]
[378097812,1754728239528,-540.52861349,0.00021799,2]
[378097813,1754728239538,-540.52861349,0.00021799,2]
[378097814,1754728239548,-540.52861349,0.00021799,2]
[378097815,1754728239557,-540.52861349,0.00021799,2]
[378097816,1754728239567,-540.52861349,0.00021799,2]
[378097817,1754728239576,-540.52861349,0.00021799,2]
[378097818,1754728239586,-540.52861349,0.00021799,2]
[378097819,1754728239595,-540.52861349,0.00021799,2]
[378097820,1754728239605,-540.52861349,0.00021799,2]
[378097821,1754728239615,-540.52861349,0.00021799,2]
[378097822,1754728239624,-540.52861349,0.00021799,2]
[378097823,1754728239634,-540.52861349,0.00021799,2]
[378097824,1754728239643,-540.52861349,0.00021799,2]
[378097825,1754728239652,-540.52861349,0.00021799,2]
[378097826,1754728239662,-540.52861349,0.00021799,2]
[378097827,1754728239671,-567.55504417,0.00021799,2]
[378097828,1754728239680,-567.55504417,0.00021799,2]
[378097829,1754728239690,-567.55504417,0.00021799,2]
[378097830,1754728239699,-567.55504417,0.00021799,2]
[378097831,1754728239708,-567.55504417,0.00021799,2]
[378097832,1754728239719,-567.55504417,0.00021799,2]
[378097833,1754728239728,-567.55504417,0.00021799,2]
[378097834,1754728239738,-119360.07144303,0.000218,2]
[378097835,1754728239750,-4791.58949653,0.000218,2]
[378097836,1754728239762,-4371.1360036,0.000218,2]
[378097837,1754728239952,-5546.39269726,0.000218,2]
[378097838,1754728239961,-758.82823346,0.000218,2]
[378097839,1754728239971,-153.6089052,0.00021816,2]
[378097840,1754728239980,-500.0,0.00021873,2]
[378097841,1754728239989,-500.0,0.00021873,2]
[378097842,1754728239999,-500.0,0.00021873,2]
[378097843,1754728240008,-500.0,0.00021873,2]
[378097844,1754728240018,-500.0,0.00021873,2]
[378097845,1754728240027,-500.0,0.00021873,2]
[378097846,1754728240037,-153482.38,0.000219,2]
[378097847,1754728240046,-1122.34,0.000219,2]
[378097848,1754728240056,-205.64630506,0.00021917,2]
[378097849,1754728240065,-460.0,0.00021917,2]
[378097850,1754728240074,-460.0,0.00021917,2]
[378097851,1754728240083,-461.74789151,0.00021917,2]
[378097852,1754728240092,-460.0,0.00021917,2]
[378097853,1754728240102,-498.59039623,0.00021917,2]
[378097854,1754728240113,-460.0,0.00021917,2]
[378097855,1754728240130,-460.0,0.00021917,2]
[378097856,1754728240140,-460.0,0.00021917,2]
[378097857,1754728240150,-460.0,0.00021917,2]
[378097858,1754728240159,-460.0,0.00021917,2]
[378097859,1754728240170,-460.0,0.00021917,2]
[378097860,1754728240180,-467.04502736,0.00021917,2]
[378097861,1754728240190,-460.0,0.00021917,2]
[378097862,1754728240202,-460.0,0.00021917,2]
[378097863,1754728240212,-383.42923019,0.00021917,2]
[378097866,1754728240630,-76.57076981,0.00021917,2]
[378097867,1754728240640,-498.67,0.00021917,2]
[378097868,1754728240650,-460.0,0.00021917,2]
[378097869,1754728240659,-460.0,0.00021917,2]
[378097870,1754728240668,-460.0,0.00021917,2]
[378097871,1754728240678,-416.99574239,0.00021917,2]
[378097872,1754728240687,-460.0,0.00021917,2]
[378097873,1754728240696,-460.0,0.00021917,2]
[378097874,1754728240706,-460.0,0.00021917,2]
[378097875,1754728240717,-460.0,0.00021917,2]
[378097876,1754728240726,-511.38,0.00021917,2]
[378097877,1754728240737,-460.0,0.00021917,2]
[378097878,1754728240746,-519.64769832,0.00021917,2]
[378097879,1754728240756,-348.19280875,0.00021917,2]
[378097880,1754728240766,-460.0,0.00021917,2]
[378097881,1754728240775,-460.0,0.00021917,2]
[378097882,1754728240785,-460.0,0.00021917,2]
[378097883,1754728240795,-460.0,0.00021917,2]
[378097884,1754728240803,-195.39916853,0.00021917,2]
[378097903,1754728268037,209.4144809,0.00020965,2]
[378097904,1754728298832,367.687509,0.00020947,2]
[378097905,1754728317125,4198.17198192,0.000199,2]
[378097906,1754728317262,2863.81416592,0.00021655,2]
[378097907,1754728317288,1334.35781572,0.00021655,2]
[378097908,1754728323548,177.71180182,0.00021259,2]
[378097911,1754728467970,954.23173923,0.00021595,2]
[378097912,1754728474867,361.90251342,0.000198,2]
[378097913,1754728494063,4210.01738563,0.000199,2]
[378097914,1754728494207,4210.01738537,0.00021655,2]
[378097915,1754728531380,10000.0,0.00020775,2]
[378097916,1754728594670,3578.5219016,0.00020695,2]
[378097919,1754728609416,5000.0,0.00021655,2]
[378097921,1754728643564,666.0,0.00020692,2]
[378097922,1754728664530,540.67672509,0.00021596,2]
[378097923,1754728665777,1266.56273212,0.000199,2]
[378097924,1754728665802,2662.78682781,0.000199,2]
[378097925,1754728665863,3929.34955967,0.00021655,2]
[378097926,1754728748598,834.9527718,0.00021594,2]
[378097927,1754728776216,241.26834228,0.000198,2]
[378097932,1754728837997,3993.25726929,0.000199,2]
[378097933,1754728838088,3993.25726918,0.00021655,2]
[378097934,1754728851373,5000.0,0.00021655,2]
[378097935,1754728866893,5000.0,0.00021655,2]
[378097937,1754728872992,244.63410554,0.00021585,2]
[378097939,1754728882909,5000.0,0.00021655,2]
[378097940,1754728898447,1400.49385443,0.00021655,2]
[378097941,1754728898470,3599.50614557,0.00021655,2]
[378097942,1754728900350,692.17208784,0.00021579,2]
[378097943,1754728914918,5000.0,0.00021655,2]
[378097944,1754728930599,5000.0,0.00021655,2]
[378097946,1754728946611,5000.0,0.00021655,2]
[378097948,1754728961775,13008.32176659,0.00020689,2]
[378097949,1754728961797,11891.67823341,0.00020689,2]
[378097951,1754728977192,5000.0,0.00021655,2]
[378097952,1754728986617,306.8484,0.00020688,2]
[378097954,1754728994220,4375.49581975,0.00021655,2]
[378097955,1754729004973,432.54138008,0.000216,2]
[378097956,1754729007831,4052.90446491,0.000199,2]
[378097957,1754729007915,4052.90446472,0.00021655,2]
[378097959,1754729028678,730.58367536,0.00021592,2]
[378097962,1754729077396,160.84556152,0.000198,2]
[378097963,1754729078475,1296.19800025,0.00019664,2]
[378097964,1754729078497,529.02838104,0.00019664,2]
[378097971,1754729191481,3781.69002056,0.000199,2]
[378097972,1754729191566,3781.69002054,0.00021655,2]
[378097975,1754729253694,265.48462101,0.00021591,2]
[378097976,1754729253962,591.919032,0.00013699,2]
[378097977,1754729254180,591.919032,0.00020187,2]
[378097978,1754729258700,265.48462099,0.00021596,2]
[378097979,1754729263718,265.48462099,0.000216,2]
[378097981,1754729312068,639.26071594,0.00021591,2]
[378097982,1754729345738,346.03310408,0.0002159,2]
[378097983,1754729348484,1264.71372244,0.000216,2]
[378097984,1754729371477,294.150007,0.00020685,2]
[378097985,1754729376819,3529.57585331,0.000199,2]
[378097986,1754729376898,3529.57585321,0.00021655,2]
[378097987,1754729378791,150.0,0.00019555,2]
[378098043,1754729431957,-346.03310405,0.00021668,2]
[378098046,1754729431966,-3707.6,0.0002168,10]
[378098049,1754729431975,-3089.67,0.0002168,10]
[378098051,1754729431985,-1200.0,0.00021683,2]
[378098054,1754729431993,-1200.0,0.00021684,2]
[378098056,1754729432003,-300.0,0.00021684,2]
[378098059,1754729432014,-300.0,0.00021684,2]
[378098062,1754729432023,-300.0,0.00021684,2]
[378098065,1754729432033,-300.0,0.00021684,2]
[378098068,1754729432042,-300.0,0.00021684,2]
[378098071,1754729432051,-50000.0,0.00021685,2]
[378098074,1754729432061,-215.40758176,0.00021685,10]
[378098077,1754729432070,-461.55179734,0.00021685,10]
[378098080,1754729432079,-3888.77,0.00021685,10]
[378098083,1754729432088,-308.36,0.00021686,3]
[378098085,1754729432097,-500.0,0.00021695,2]
[378098088,1754729432106,-580.35074575,0.00021695,2]
[378098091,1754729432116,-580.35074575,0.00021695,2]
[378098094,1754729432126,-580.35074575,0.00021695,2]
[378098097,1754729432136,-580.35074575,0.00021695,2]
[378098100,1754729432148,-580.35074575,0.00021695,2]
[378098103,1754729432157,-580.35074575,0.00021695,2]
[378098105,1754729432167,-580.35074575,0.00021695,2]
[378098107,1754729432176,-580.35074575,0.00021695,2]
[378098109,1754729432185,-580.35074575,0.00021695,2]
[378098111,1754729432195,-580.35074575,0.00021695,2]
[378098113,1754729432204,-580.35074575,0.00021695,2]
[378098115,1754729432214,-580.35074575,0.00021695,2]
[378098117,1754729432222,-580.35074575,0.00021695,2]
[378098119,1754729432232,-580.35074575,0.00021695,2]
[378098121,1754729432241,-580.35074575,0.00021695,2]
[378098123,1754729432251,-580.35074575,0.00021695,2]
[378098125,1754729432264,-580.35074575,0.00021695,2]
[378098127,1754729432273,-580.35074575,0.00021695,2]
[378098129,1754729432282,-580.35074575,0.00021695,2]
[378098131,1754729432291,-580.35074575,0.00021695,2]
[378098133,1754729432301,-580.35074575,0.00021695,2]
[378098134,1754729432310,-580.35074575,0.00021695,2]
[378098136,1754729432320,-599.6957706,0.00021695,2]
[378098137,1754729432329,-599.6957706,0.00021695,2]
[378098138,1754729432339,-599.6957706,0.00021695,2]
[378098140,1754729432349,-599.6957706,0.00021695,2]
[378098142,1754729432359,-599.6957706,0.00021695,2]
[378098143,1754729432368,-599.6957706,0.00021695,2]
[378098145,1754729432378,-599.6957706,0.00021695,2]
[378098147,1754729432388,-599.6957706,0.00021695,2]
[378098149,1754729432398,-599.6957706,0.00021695,2]
[378098151,1754729432407,-84470.65986,0.00021696,2]
[378098154,1754729432424,-109329.34014,0.00021696,2]
[378098156,1754729432433,-151.0,0.000217,4]
[378098158,1754729432443,-151.0,0.000217,3]
[378098160,1754729432452,-346.03310405,0.00021745,2]
[378098162,1754729432462,-1000.0,0.000218,2]
[378098163,1754729432473,-1000.0,0.000218,3]
[378098165,1754729432484,-151.0,0.000218,4]
[378098167,1754729432494,-346.03310405,0.00021823,2]
[378098169,1754729432505,-225.52902969,0.00021898,2]
[378098172,1754729432517,-151.0,0.000219,3]
[378098173,1754729432527,-346.03310405,0.000219,2]
[378098175,1754729432549,-220.234414,0.00021917,2]
[378098177,1754729432562,-220.234414,0.00021917,2]
[378098179,1754729432571,-220.234414,0.00021917,2]
[378098181,1754729432580,-220.234414,0.00021917,2]
[378098183,1754729432592,-151.0,0.00021917,2]
[378098185,1754729432607,-151.0,0.00021917,2]
[378098187,1754729432616,-2000.0,0.00021917,2]
[378098189,1754729432625,-2000.0,0.00021917,2]
[378098191,1754729432635,-2000.0,0.00021917,2]
[378098193,1754729432644,-243.121,0.00021917,2]
[378098195,1754729432654,-502.73372755,0.00021917,2]
[378098197,1754729432663,-461.21,0.00021917,2]
[378098199,1754729432672,-460.0,0.00021917,2]
[378098201,1754729432682,-460.0,0.00021917,2]
[378098203,1754729432692,-460.0,0.00021917,2]
[378098205,1754729432701,-460.0,0.00021917,2]
[378098207,1754729432710,-460.0,0.00021917,2]
[378098209,1754729432719,-460.0,0.00021917,2]
[378098211,1754729432730,-460.0,0.00021917,2]
[378098213,1754729432739,-460.0,0.00021917,2]
[378098215,1754729432749,-460.0,0.00021917,2]
[378098217,1754729432760,-460.0,0.00021917,2]
[378098219,1754729432769,-469.96022211,0.00021917,2]
[378098221,1754729432779,-460.0,0.00021917,2]
[378098223,1754729432788,-460.0,0.00021917,2]
[378098225,1754729432798,-460.0,0.00021917,2]
[378098227,1754729432807,-460.0,0.00021917,2]
[378098229,1754729432817,-460.0,0.00021917,2]
[378098231,1754729432826,-460.0,0.00021917,2]
[378098233,1754729432835,-460.0,0.00021917,2]
[378098235,1754729432844,-460.0,0.00021917,2]
[378098237,1754729432854,-462.21060441,0.00021917,2]
[378098239,1754729432863,-460.0,0.00021917,2]
[378098241,1754729432873,-460.0,0.00021917,2]
[378098243,1754729432882,-206.81259997,0.00021917,2]
[378098245,1754729432891,-460.0,0.00021917,2]
[378098247,1754729432901,-460.0,0.00021917,2]
[378098249,1754729432910,-460.0,0.00021917,2]
[378098251,1754729432919,-567.91,0.00021917,2]
[378098253,1754729432928,-460.0,0.00021917,2]
[378098255,1754729432937,-460.0,0.00021917,2]
[378098257,1754729432946,-483.57655411,0.00021917,2]
[378098259,1754729432955,-460.0,0.00021917,2]
[378098261,1754729432964,-460.0,0.00021917,2]
[378098263,1754729432973,-460.0,0.00021917,2]
[378098265,1754729432982,-460.0,0.00021917,2]
[378098267,1754729432991,-463.54575353,0.00021917,2]
[378098269,1754729433000,-460.0,0.00021917,2]
[378098271,1754729433012,-460.0,0.00021917,2]
[378098273,1754729433021,-460.0,0.00021917,2]
[378098275,1754729433031,-461.47867843,0.00021917,2]
[378098277,1754729433040,-460.0,0.00021917,2]
[378098279,1754729433049,-460.0,0.00021917,2]
[378098281,1754729433058,-460.0,0.00021917,2]
[378098283,1754729433067,-460.0,0.00021917,2]
[378098285,1754729433077,-460.0,0.00021917,2]
[378098287,1754729433086,-460.0,0.00021917,2]
[378098289,1754729433095,-460.0,0.00021917,2]
[378098290,1754729433104,-460.0,0.00021917,2]
[378098292,1754729433114,-460.0,0.00021917,2]
[378098295,1754729433124,-460.0,0.00021917,2]
[378098296,1754729433133,-460.0,0.00021917,2]
[378098298,1754729433142,-460.0,0.00021917,2]
[378098300,1754729433152,-460.0,0.00021917,2]
[378098302,1754729433162,-460.0,0.00021917,2]
[378098304,1754729433172,-460.0,0.00021917,2]
[378098306,1754729433182,-460.0,0.00021917,2]
[378098307,1754729433191,-460.0,0.00021917,2]
[378098309,1754729433200,-460.0,0.00021917,2]
[378098311,1754729433210,-460.0,0.00021917,2]
[378098312,1754729433219,-460.0,0.00021917,2]
[378098313,1754729433230,-251.26041855,0.00021917,2]
[378098314,1754729433239,-460.0,0.00021917,2]
[378098315,1754729433249,-460.0,0.00021917,2]
[378098316,1754729433260,-460.0,0.00021917,2]
[378098317,1754729433270,-460.0,0.00021917,2]
[378098318,1754729433279,-460.0,0.00021917,2]
[378098319,1754729433289,-460.0,0.00021917,2]
[378098320,1754729433300,-468.1659015,0.00021917,2]
[378098321,1754729433309,-460.0,0.00021917,2]
[378098322,1754729433319,-460.0,0.00021917,2]
[378098323,1754729433328,-460.0,0.00021917,2]
[378098324,1754729433338,-460.0,0.00021917,2]
[378098325,1754729433348,-460.0,0.00021917,2]
[378098326,1754729433358,-460.0,0.00021917,2]
[378098327,1754729433369,-562.17,0.00021917,2]
[378098328,1754729433378,-460.0,0.00021917,2]
[378098329,1754729433388,-460.0,0.00021917,2]
[378098330,1754729433398,-2408.59,0.00021917,2]
[378098331,1754729433408,-630.81,0.00021917,2]
[378098332,1754729433418,-460.0,0.00021917,2]
[378098333,1754729433428,-460.0,0.00021917,2]
[378098334,1754729433438,-460.0,0.00021917,2]
[378098335,1754729433448,-366.81371358,0.00021917,2]
[378098336,1754729433458,-525.16,0.00021917,2]